bitfinex-derivatives/quotes_SOLF0:USTF0_20251219
["timestamp","ask_amount","ask_price","bid_price","bid_amount"]
[1766176527679,0.04997152,126.96,126.92,3.4]
[1766176527874,9.12930277,127.0,126.92,3.4]
[1766176528584,3.33,126.99,126.92,3.4]
[1766176528782,0.0498629,126.97,126.94,0.05017252]
[1766176529284,3.3798629,126.97,126.94,0.05017252]
[1766176531088,0.0498629,126.97,126.94,0.05017252]
[1766176536497,3.13,126.96,126.89,3.45]
[1766176537391,0.05235209,126.94,126.91,0.05293369]
[1766176539512,3.18235209,126.94,126.91,0.05293369]
[1766176540598,0.05235209,126.94,126.91,0.05293369]
[1766176544392,0.05235209,126.94,126.91,3.50293369]
[1766176544797,0.00235209,126.94,126.91,3.50293369]
[1766176546007,117.3197,127.08,126.96,7.0923]
[1766176546189,26.61488,127.09,126.97,156.8785]
[1766176546390,3.13,127.09,126.98,110.3122]
[1766176546801,3.13,127.09,127.0,110.2944]
[1766176547012,0.00140087,127.05,127.02,0.05287934]
[1766176547202,3.13,127.12,127.03,46.56]
[1766176547497,4.49980909,127.15,127.03,46.56]
[1766176547798,3.13,127.15,127.07,110.2318]
[1766176547996,3.13,127.15,127.1,0.0589638]
[1766176548603,3.13,127.17,127.1,0.0589638]
[1766176548906,3.13,127.17,127.12,0.00476871]
[1766176549093,3.13,127.14,127.07,46.56]
[1766176549296,3.13,127.27,127.13,5.79930277]
[1766176549604,3.13,127.24,127.11,117.2777]
[1766176549799,3.13,127.23,127.12,148.2303]
[1766176550303,0.0530964,127.19,127.16,0.05246936]
[1766176550504,124.789429,127.29,127.16,110.20736936]
[1766176550505,3.13,127.27,127.16,110.20736936]
[1766176550701,3.13,127.3,127.19,110.1266]
[1766176550890,3.13,127.3,127.22,110.1014]
[1766176551199,3.13,127.34,127.24,110.0859]
[1766176551400,3.13,127.34,127.26,110.0668]
[1766176551696,3.13,127.34,127.28,0.05009337]
[1766176551903,3.13,127.34,127.22,110.1027]
[1766176552092,3.13,127.34,127.23,110.0948]
[1766176552292,3.13,127.34,127.24,110.0862]
[1766176552494,3.13,127.34,127.26,110.0658]
[1766176552693,3.13,127.34,127.25,46.54]
[1766176552898,3.13,127.34,127.28,0.05640771]
[1766176552899,0.05237329,127.31,127.28,0.05640771]
[1766176553103,3.18237329,127.31,127.28,0.05640771]
[1766176553602,0.05237329,127.31,127.28,0.05640771]
[1766176554305,0.05237329,127.31,127.22,179.1809]
[1766176554306,3.18237329,127.31,127.22,62.0]
[1766176554495,3.18237329,127.31,127.16,156.6705]
[1766176554496,3.13,127.28,127.16,156.6705]
[1766176554694,3.13,127.27,127.16,46.52]
[1766176555005,3.13,127.27,127.16,156.675]
[1766176555203,3.13,127.29,127.18,110.1364]
[1766176555498,0.0594181,127.25,127.22,0.05215673]
[1766176556995,0.0594181,127.25,127.16,110.155]
[1766176557196,3.13,127.25,127.13,94.54]
[1766176557397,3.13,127.25,127.14,46.5]
[1766176557705,3.13,127.25,127.13,94.54]
[1766176558103,0.0509157,127.2,127.18,0.05554735]
[1766176558295,0.05992772,127.2,127.18,0.05554735]
[1766176559293,0.05992772,127.2,127.11,110.1938]
[1766176559509,3.13,127.22,127.14,110.1729]
[1766176559699,3.13,127.26,127.14,110.1729]
[1766176560207,3.13,127.26,127.13,110.1787]
[1766176560499,0.05765836,127.21,127.19,0.0567887]
[1766176560712,3.17975306,127.21,127.08,117.3069]
[1766176560897,3.13,127.19,127.09,46.48]
[1766176561494,3.13,127.22,127.12,110.1901]
[1766176561701,3.13,127.22,127.12,117.2738]
[1766176561897,0.05736983,127.18,127.16,0.05801034]
[1766176563202,0.05736983,127.18,127.06,179.3242]
[1766176563403,3.13,127.2,127.06,179.3242]
[1766176563404,3.13,127.19,127.1,46.48]
[1766176564007,3.13,127.19,127.06,179.3242]
[1766176564008,3.13,127.17,127.09,46.48]
[1766176564195,3.13,127.17,127.03,117.3558]
[1766176564196,0.0501848,127.14,127.12,0.00136788]
[1766176564400,3.42,127.14,127.0,110.2928]
[1766176564600,3.42,127.14,127.03,110.2671]
[1766176564905,3.42,127.14,127.04,46.48]
[1766176565096,3.42,127.14,127.05,46.48]
[1766176565299,0.05545059,127.11,127.08,0.05827168]
[1766176569311,3.42,127.17,127.08,0.05827168]
[1766176569504,3.42,127.17,127.04,117.3432]
[1766176569709,3.42,127.17,127.05,46.48]
[1766176570010,3.42,127.17,127.06,62.0]
[1766176570210,0.06056429,127.13,127.1,0.05253255]
[1766176572404,0.00056429,127.13,127.1,0.05253255]
[1766176574312,0.00056429,127.13,127.1,46.53253255]
[1766176574516,0.00056429,127.13,127.1,0.05253255]
[1766176584131,3.57056429,127.13,127.1,0.00253255]
[1766176585640,0.00056429,127.13,127.1,0.00253255]
[1766176587733,3.57,127.2,127.11,46.48]
[1766176588730,0.05049644,127.17,127.14,0.0543017]
[1766176594037,3.62049644,127.17,127.14,0.0043017]
[1766176596041,3.7,127.16,127.06,53.5669]
[1766176596339,3.7,127.15,127.05,46.48]
[1766176597040,0.0538813,127.11,127.09,0.05507915]
[1766176605533,3.7,127.18,127.09,0.05507915]
[1766176605738,3.7,127.18,127.07,7.18229576]
[1766176606247,3.7,127.18,127.08,46.48]
[1766176606447,0.06011215,127.14,127.12,0.05941089]
[1766176606642,0.05569808,127.14,127.08,7.0857]
[1766176607941,0.05569808,127.14,127.1,0.05952975]
[1766176611056,3.75569808,127.14,127.1,0.05952975]
[1766176611355,3.75569808,127.14,127.05,53.66229576]
[1766176611543,3.7,127.14,127.05,46.48]
[1766176612350,0.05681499,127.11,127.08,0.05020234]
[1766176615857,0.05681499,127.11,127.08,0.00020234]
[1766176615858,3.75681499,127.11,127.08,0.00020234]
[1766176616060,3.7,127.09,127.02,7.0893]
[1766176617152,0.05679354,127.07,127.04,0.05423206]
[1766176621369,3.7,127.11,127.04,0.05423206]
[1766176621559,3.7,127.11,127.02,7.0893]
[1766176622369,0.0520644,127.08,127.05,0.05381793]
[1766176628175,0.0520644,127.08,127.05,0.00381793]
[1766176628176,3.6920644,127.08,127.05,0.00381793]
[1766176628469,113.8849,127.06,126.95,46.5]
[1766176628658,3.64,127.04,126.95,46.5]
[1766176629165,3.64,127.03,126.95,46.5]
[1766176629370,0.05572541,127.01,126.98,0.05786455]
[1766176630372,0.05572541,127.01,126.93,48.36369483]
[1766176630373,3.69572541,127.01,126.93,46.5]
[1766176630579,3.64,127.01,126.93,46.5]
[1766176631381,0.05621444,126.98,126.96,0.05909155]
[1766176633785,0.05621444,126.98,126.93,46.5]
[1766176634779,0.05621444,126.98,126.94,0.04987782]
[1766176636176,3.69621444,126.98,126.94,0.04987782]
[1766176636482,3.69621444,126.98,126.88,7.0968]
[1766176636683,3.64,126.98,126.88,7.0968]
[1766176636989,3.64,126.95,126.83,62.0]
[1766176637177,3.64,126.95,126.86,110.416]
[1766176637374,0.05607502,126.92,126.89,0.0600467]
[1766176640282,3.82607502,126.92,126.89,4.67e-05]
[1766176642789,0.05607502,126.92,126.89,4.67e-05]
[1766176644485,3.82607502,126.92,126.89,4.67e-05]
[1766176645088,114.19587502,126.92,126.89,4.67e-05]
[1766176645292,3.77,126.91,126.81,53.641]
[1766176645589,3.77,126.91,126.82,117.5519]
[1766176646291,0.05512839,126.88,126.85,0.06047363]
[1766176646992,3.77,126.94,126.85,110.48647363]
[1766176647185,3.77,126.94,126.85,110.426]
[1766176647889,0.05689014,126.91,126.88,0.05797705]
[1766176657990,3.92689014,126.91,126.88,0.05797705]
[1766176660489,0.05689014,126.91,126.88,0.05797705]
[1766176662696,3.87,126.95,126.88,0.05797705]
[1766176663001,3.87,126.95,126.87,7.0975]
[1766176663694,0.05655287,126.92,126.9,0.05137553]
[1766176663997,3.87,126.95,126.9,0.05137553]
[1766176664889,0.0594307,126.94,126.9,0.05137553]
[1766176666002,3.87,126.98,126.9,0.05137553]
[1766176666196,3.87,126.98,126.88,110.3954]
[1766176666404,3.87,127.0,126.9,110.383]
[1766176666701,3.87,127.0,126.91,46.56]
[1766176667005,0.05185332,126.97,126.94,0.06019366]
[1766176667706,3.92185332,126.97,126.94,0.00019366]
[1766176681808,11.01415332,126.97,126.94,0.00019366]
[1766176682011,3.87,126.96,126.94,0.00019366]
[1766176684819,0.05185332,126.97,126.94,0.00019366]
[1766176690021,4.06185332,126.97,126.94,0.00019366]
[1766176690211,4.01,126.96,126.87,53.74229576]
[1766176690410,4.01,126.96,126.87,46.56]
[1766176690610,4.01,126.96,126.87,57.36698912]
[1766176691115,0.05132131,126.93,126.9,0.06023037]
[1766176703222,4.04132131,126.93,126.9,0.06023037]
[1766176705424,4.04132131,126.93,126.9,0.00023037]
[1766176705615,0.05132131,126.93,126.9,0.00023037]
[1766176707429,3.99,126.97,126.9,0.00023037]
[1766176708515,0.05240825,126.95,126.9,0.00023037]
[1766176708717,0.05240825,126.95,126.91,0.0502356]
[1766176709315,3.99,126.98,126.91,0.0502356]
[1766176709625,3.99,126.98,126.9,121.27288488]
[1766176710422,0.0569027,126.95,126.93,0.05276594]
[1766176713523,3.99,127.02,126.93,0.05276594]
[1766176713724,3.99,127.02,126.94,3.70948912]
[1766176713925,3.99,127.02,126.95,46.56]
[1766176714719,0.06029784,127.0,126.97,0.05430797]
[1766176714924,3.9,127.05,126.97,0.05430797]
[1766176715229,3.9,127.05,126.95,46.56]
[1766176716031,0.05759395,127.01,126.99,0.05023843]
[1766176716234,0.04977023,127.01,126.95,46.56]
[1766176716634,0.04977023,127.01,126.95,53.6529]
[1766176717429,0.04977023,127.01,126.97,0.05723297]
[1766176719645,3.9,127.05,126.97,110.37523297]
[1766176719930,3.9,127.05,126.98,110.3141]
[1766176720139,3.9,127.05,126.99,46.54]
[1766176720637,0.05007577,127.03,127.01,0.04980819]
[1766176721134,0.05007577,127.03,127.0,46.54]
[1766176722139,0.05007577,127.03,127.0,46.59311216]
[1766176726446,27.99084756,127.07,127.0,46.59311216]
[1766176727327,0.05051317,127.05,127.0,46.59311216]
[1766176731846,3.95051317,127.05,127.0,46.57311216]
[1766176733346,3.95051317,127.05,127.0,0.05311216]
[1766176736354,0.05051317,127.05,127.0,0.05311216]
[1766176740756,3.95051317,127.05,127.0,46.57311216]
[1766176741155,3.95051317,127.05,127.0,0.05311216]
[1766176742452,3.95051317,127.05,126.93,176.06026575]
[1766176742650,3.9,127.03,126.93,3.70526575]
[1766176742850,3.9,127.03,126.94,46.52]
[1766176743560,0.06015174,127.0,126.97,0.05414979]
[1766176747154,3.99015174,127.0,126.93,7.0941]
[1766176747354,3.99015174,127.0,126.93,53.6141]
[1766176747755,0.06015174,127.0,126.93,57.31936575]
[1766176748160,0.06015174,127.0,126.95,0.05090435]
[1766176750063,3.99015174,127.0,126.95,0.05090435]
[1766176751458,0.06015174,127.0,126.95,0.05090435]
[1766176752357,0.06015174,127.0,126.95,7.14390435]
[1766176754065,0.06015174,127.0,126.95,53.66390435]
[1766176754568,3.99015174,127.0,126.95,0.05090435]
[1766176758372,3.99015174,127.0,126.95,0.00090435]
[1766176758860,3.93,126.98,126.91,46.54]
[1766176759076,3.93,126.98,126.9,53.6357]
[1766176759462,3.93,126.97,126.89,46.54]
[1766176759860,0.05062128,126.94,126.92,0.05160394]
[1766176762370,3.98062128,126.94,126.92,0.00160394]
[1766176762676,3.93,126.93,126.84,1.88686301]
[1766176762868,3.93,126.93,126.84,48.42686301]
[1766176763069,3.93,126.93,126.84,1.88686301]
[1766176763269,3.93,126.91,126.8,46.54]
[1766176763467,3.93,126.91,126.8,157.0107]
[1766176763670,0.05826022,126.87,126.84,0.05171092]
[1766176765292,3.98826022,126.87,126.79,53.642]
[1766176765477,3.93,126.87,126.79,53.642]
[1766176766276,0.0583409,126.84,126.82,0.05093676]
[1766176768685,0.0583409,126.84,126.82,0.00093676]
[1766176769082,3.9883409,126.84,126.78,46.56]
[1766176769894,3.9883409,126.84,126.75,7.1043]
[1766176770197,3.9883409,126.84,126.78,0.0507717]
[1766176770198,0.05307248,126.81,126.78,0.0507717]
[1766176771591,3.93,126.84,126.78,0.0507717]
[1766176772695,0.05160417,126.82,126.78,0.0507717]
[1766176775689,0.05160417,126.82,126.78,7.1530717]
[1766176777398,0.05160417,126.82,126.79,46.58]
[1766176779501,0.05160417,126.82,126.78,46.6307717]
[1766176781601,0.05160417,126.82,126.78,0.0507717]
[1766176783402,3.97160417,126.82,126.78,0.0507717]
[1766176783595,3.97160417,126.82,126.78,0.0007717]
[1766176787597,3.97160417,126.82,126.71,111.91433522]
[1766176787806,3.92,126.82,126.73,46.6]
[1766176788295,3.92,126.81,126.73,46.6]
[1766176788701,0.05624447,126.78,126.76,0.05455436]
[1766176790906,3.92,126.82,126.76,0.05455436]
[1766176791795,0.05820863,126.8,126.76,0.05455436]
[1766176792902,3.97820863,126.8,126.76,0.00455436]
[1766176793204,3.92,126.79,126.67,162.97023726]
[1766176793398,3.92,126.79,126.67,157.1764]
[1766176793595,3.92,126.79,126.67,158.54974991]
[1766176793995,0.05746645,126.74,126.72,0.05983358]
[1766176794204,0.05746645,126.74,126.72,0.0006656]
[1766176794205,0.04977869,126.74,126.72,0.0006656]
[1766176794598,3.96977869,126.74,126.72,0.0006656]
[1766176795507,0.04977869,126.74,126.72,0.0006656]
[1766176795699,3.96977869,126.74,126.72,0.0006656]
[1766176796008,3.96977869,126.74,126.65,46.6]
[1766176796305,3.92,126.74,126.65,46.6]
[1766176796799,3.92,126.74,126.64,53.7104]
[1766176797005,0.0506204,126.71,126.68,0.03815385]
[1766176798201,3.9706204,126.71,126.68,0.03815385]
[1766176798403,3.9706204,126.71,126.62,115.7116]
[1766176798705,3.92,126.71,126.61,1.37402772]
[1766176798908,3.92,126.71,126.61,46.62]
[1766176799304,0.05370203,126.67,126.61,46.62]
[1766176800909,0.00370203,126.67,126.63,0.04984387]
[1766176801104,3.92,126.72,126.63,110.66804387]
[1766176801408,3.92,126.72,126.63,110.6182]
[1766176801608,3.92,126.72,126.64,7.1102]
[1766176802006,0.05181612,126.69,126.67,0.05370204]
[1766176802599,162.94879132,126.76,126.67,0.05370204]
[1766176802600,3.92,126.76,126.67,0.05370204]
[1766176802813,3.92,126.76,126.67,110.5774]
[1766176803699,3.92,126.76,126.67,67.74020137]
[1766176803700,0.05269164,126.73,126.67,67.74020137]
[1766176804708,0.05269164,126.73,126.68,7.1079]
[1766176804898,0.05269164,126.73,126.69,0.05061679]
[1766176805503,0.05269164,126.73,126.69,46.67061679]
[1766176805714,0.05269164,126.73,126.69,0.05061679]
[1766176805903,0.05269164,126.73,126.69,46.67061679]
[1766176806405,3.85269164,126.73,126.69,0.00061679]
[1766176807397,0.05269164,126.73,126.69,0.00061679]
[1766176808609,0.05269164,126.73,126.7,46.62]
[1766176808908,0.05269164,126.73,126.69,0.00061679]
[1766176809412,0.05269164,126.73,126.7,46.62]
[1766176809710,0.05269164,126.73,126.69,46.64]
[1766176811008,3.8,126.77,126.69,46.64]
[1766176811206,3.8,126.77,126.69,53.7474]
[1766176812005,0.05915483,126.74,126.72,0.05269164]
[1766176812817,50.44,126.8,126.72,0.05269164]
[1766176813014,50.44,126.8,126.71,7.1063]
[1766176813309,3.8,126.79,126.69,164.3118]
[1766176813614,3.8,126.79,126.7,46.62]
[1766176813813,0.05182943,126.76,126.73,0.05254401]
[1766176814819,0.00182943,126.76,126.73,0.05254401]
[1766176815617,3.8,126.8,126.73,0.05254401]
[1766176816519,0.05661704,126.78,126.73,0.05254401]
[1766176818419,3.8,126.82,126.74,46.62]
[1766176819318,0.05308935,126.79,126.77,0.05916119]
[1766176819815,3.82308935,126.79,126.71,110.5434]
[1766176820035,3.77,126.79,126.72,46.62]
[1766176820818,0.05954721,126.77,126.74,0.05363292]
[1766176821011,0.0565148,126.77,126.74,0.05265263]
[1766176828318,3.8265148,126.77,126.69,114.28392923]
[1766176828520,3.77,126.77,126.69,114.28392923]
[1766176829020,3.77,126.77,126.71,7.1064]
[1766176829415,0.05872694,126.75,126.73,0.04993289]
[1766176830122,0.05872694,126.75,126.69,7.1075]
[1766176831126,3.82872694,126.75,126.71,0.05854623]
[1766176833323,3.82872694,126.75,126.7,3.71992923]
[1766176835128,3.82872694,126.75,126.68,3.71992923]
[1766176835324,3.66686084,126.73,126.68,3.71992923]
[1766176836118,3.66686084,126.73,126.66,3.71992923]
[1766176836318,3.66305663,126.71,126.66,3.71992923]
[1766176837122,3.66305663,126.71,126.65,10.82962923]
[1766176840121,0.05305663,126.71,126.67,3.71992923]
[1766176841332,7.1042,126.76,126.68,0.05005214]
[1766176841528,50.25,126.76,126.69,3.71992923]
[1766176841837,3.61,126.75,126.69,3.71992923]
[1766176842339,0.06046707,126.73,126.71,0.05305663]
[1766176844837,3.61,126.77,126.71,0.05305663]
[1766176845135,3.61,126.77,126.69,110.5666]
[1766176845524,3.61,126.77,126.71,7.1064]
[1766176845933,0.04972904,126.75,126.73,0.06042021]
[1766176847934,3.61,126.8,126.73,0.06042021]
[1766176848134,3.61,126.82,126.73,0.06042021]
[1766176848435,3.61,126.82,126.72,110.538]
[1766176848837,3.61,126.82,126.74,7.1046]
[1766176849025,0.0574137,126.79,126.77,0.05369528]
[1766176853540,3.61,126.82,126.77,0.05369528]
[1766176854036,3.61,126.85,126.77,0.05369528]
[1766176854244,3.61,126.85,126.78,7.1027]
[1766176854427,3.61,126.85,126.76,110.5]
[1766176854630,0.05358202,126.82,126.79,0.04972919]
[1766176860545,3.61,126.88,126.79,0.04972919]
[1766176860742,3.61,126.88,126.77,119.63511076]
[1766176860944,3.61,126.88,126.79,110.4795]
[1766176861141,3.61,126.88,126.81,110.4607]
[1766176861346,0.05482484,126.86,126.83,0.05141133]
[1766176866040,58.75865849,126.93,126.83,7.15111133]
[1766176866240,3.89,126.92,126.83,7.0997]
[1766176866444,3.89,126.92,126.84,3.71463143]
[1766176867053,0.06061719,126.89,126.87,0.05720064]
[1766176870455,0.06061719,126.89,126.84,7.0992]
[1766176871358,0.06061719,126.89,126.85,0.05857701]
[1766176872355,3.89,126.92,126.86,7.0981]
[1766176873343,3.89,126.92,126.88,0.05315175]
[1766176873545,0.05592561,126.9,126.88,0.05315175]
[1766176875857,3.89,126.92,126.88,0.05315175]
[1766176876056,3.89,126.95,126.88,0.05315175]
[1766176876257,3.89,126.95,126.87,110.408]
[1766176876456,3.89,126.97,126.88,110.3982]
[1766176876962,0.05317734,126.94,126.91,0.0544058]
[1766176877658,3.94317734,126.94,126.91,0.0544058]
[1766176877858,3.94317734,126.94,126.91,0.0044058]
[1766176882265,0.05317734,126.94,126.91,0.0044058]
[1766176886365,0.00317734,126.94,126.91,0.0044058]
[1766176886561,3.62,126.98,126.91,0.0044058]
[1766176887365,3.62,126.98,126.92,7.0947]
[1766176887665,0.05682164,126.96,126.94,0.05409294]
[1766176889668,3.67682164,126.96,126.9,7.0957]
[1766176889871,3.67682164,126.96,126.88,46.56]
[1766176890067,3.62,126.96,126.88,46.56]
[1766176890658,3.62,126.96,126.88,53.6568]
[1766176890876,0.05491112,126.93,126.91,0.05697704]
[1766176896980,4.01491112,126.93,126.88,53.657]
[1766176897679,4.01491112,126.93,126.88,7.097]
[1766176897980,4.01491112,126.93,126.89,0.04982074]
[1766176898979,0.05491112,126.93,126.89,0.04982074]
[1766176899176,0.05491112,126.93,126.89,7.14622074]
[1766176903080,116.10301522,127.0,126.92,110.3626]
[1766176903081,3.96,127.0,126.92,110.3626]
[1766176903283,3.96,127.0,126.93,156.9175]
[1766176903589,3.96,127.0,126.93,46.56]
[1766176904085,0.05435638,126.98,126.95,0.05202701]
[1766176905086,0.05435638,126.98,126.95,0.00202701]
[1766176905087,4.01435638,126.98,126.95,0.00202701]
[1766176905983,5.638e-05,126.98,126.95,0.00202701]
[1766176906181,5.80371522,127.02,126.95,0.00202701]
[1766176907079,0.05583578,127.0,126.95,0.00202701]
[1766176907588,0.05583578,127.0,126.95,7.09482701]
[1766176908588,4.01583578,127.0,126.95,7.09482701]
[1766176908983,4.01583578,127.0,126.95,0.00202701]
[1766176918593,3.96,126.98,126.95,0.00202701]
[1766176918800,3.96,126.98,126.9,7.0958]
[1766176919706,0.05238555,126.95,126.93,0.05206632]
[1766176920796,3.96,126.99,126.93,0.05206632]
[1766176921903,0.05128811,126.97,126.93,0.05206632]
[1766176922211,4.01128811,126.97,126.93,0.05206632]
[1766176927919,4.01128811,126.97,126.93,0.00206632]
[1766176931120,0.05128811,126.97,126.93,0.00206632]
[1766176932113,3.85128811,126.97,126.93,0.00206632]
[1766176939629,0.05128811,126.97,126.93,0.00206632]
[1766176940222,0.05128811,126.97,126.93,7.09626632]
[1766176946425,3.99,127.01,126.94,7.0936]
[1766176946625,3.99,127.0,126.94,7.0936]
[1766176947432,4.04735841,126.98,126.92,7.26106544]
[1766176948439,4.04735841,126.98,126.94,0.0533108]
[1766176965961,0.05735841,126.98,126.94,0.0533108]
[1766176967474,0.05735841,126.98,126.94,7.31437624]
[1766176967661,0.05735841,126.98,126.95,7.0929]
[1766176969473,3.97,127.02,126.96,7.0926]
[1766176970277,3.97,127.02,126.97,7.092]
[1766176970467,0.05591603,127.01,126.98,0.0509869]
[1766176971569,3.97,127.04,126.98,7.1423869]
[1766176971872,3.97,127.04,126.98,7.0914]
[1766176972175,3.97,127.04,126.97,114.02850198]
[1766176972476,50.51,127.06,126.99,7.0908]
[1766176972776,0.05835872,127.04,127.01,0.05128723]
[1766176978974,4.02835872,127.04,127.01,0.00128723]
[1766176986080,3.86,127.02,126.97,7.0918]
[1766176986275,3.86,127.02,126.95,53.6129]
[1766176986575,3.86,127.02,126.95,46.52]
[1766176987180,0.05346447,127.0,126.97,0.05965409]
[1766176989582,3.86,126.98,126.91,7.26106544]
[1766176989776,3.86,126.98,126.89,205.75270603]
[1766176989777,3.86,126.98,126.89,117.64616544]
[1766176990584,0.05927737,126.95,126.92,0.05495425]
[1766176994283,3.91927737,126.95,126.92,0.05495425]
[1766176994584,3.91927737,126.95,126.92,0.00495425]
[1766176994785,3.91927737,126.95,126.88,1.86726923]
[1766176995788,3.91927737,126.95,126.9,0.05076246]
[1766177006693,0.05927737,126.95,126.9,7.14656246]
[1766177006902,0.05927737,126.95,126.9,110.43206246]
[1766177007594,0.05927737,126.95,126.91,7.0953]
[1766177009001,0.05927737,126.95,126.9,114.08736246]
[1766177009605,0.05927737,126.95,126.91,7.0953]
[1766177010003,0.05927737,126.95,126.92,0.05995736]
[1766177011806,3.91,126.97,126.92,7.15465736]
[1766177012902,0.05644202,126.96,126.92,7.15465736]
[1766177014104,0.05644202,126.96,126.9,46.56]
[1766177014603,0.05644202,126.96,126.92,7.0947]
[1766177015205,0.05644202,126.96,126.93,0.05016953]
[1766177017904,3.82644202,126.96,126.93,0.00016953]
[1766177021505,0.05644202,126.96,126.93,0.00016953]
[1766177022402,3.77,126.99,126.93,0.00016953]
[1766177022603,3.77,126.99,126.93,110.35536953]
[1766177023415,0.05522185,126.97,126.93,110.35536953]
[1766177023605,0.05522185,126.97,126.95,7.0929]
[1766177025513,0.05522185,126.97,126.93,7.09426953]
[1766177025712,0.05522185,126.97,126.93,0.00016953]
[1766177026013,46.56,127.01,126.95,7.0931]
[1766177026014,3.77,127.01,126.95,7.0931]
[1766177026710,1.32839544,127.05,126.96,7.0925]
[1766177026711,3.77,127.03,126.96,7.0925]
[1766177026910,0.06038225,127.01,126.98,0.05339626]
[1766177028420,3.77,127.05,126.98,53.68469626]
[1766177028720,3.77,127.05,126.98,53.6313]
[1766177029314,0.05588861,127.03,127.0,0.05965176]
[1766177035709,3.77,127.09,127.0,0.05965176]
[1766177036012,3.77,127.09,126.99,110.3036]
[1766177036608,3.77,127.09,127.0,46.52]
[1766177036609,3.77,127.04,127.0,46.52]
[1766177037824,3.77,127.04,127.01,0.05044293]
[1766177044020,3.82044723,127.05,127.01,0.05044293]
[1766177044723,0.05044723,127.05,127.01,0.05044293]
[1766177046222,0.05044723,127.05,127.01,7.14014293]
[1766177046525,3.56,127.1,127.01,156.85504293]
[1766177046726,3.56,127.1,127.0,195.9442]
[1766177046918,3.56,127.1,127.02,46.52]
[1766177047326,3.56,127.06,127.05,6.119e-05]
[1766177051023,3.56,127.06,126.99,110.3022]
[1766177051024,3.56,127.06,126.99,7.0907]
[1766177052032,0.05626138,127.04,127.01,0.06025632]
[1766177052227,3.61626138,127.04,127.01,0.06025632]
[1766177053724,3.61626138,127.04,127.01,0.00025632]
[1766177057019,3.61626138,127.04,126.95,7.26106544]
[1766177057225,3.56,127.02,126.94,110.3412]
[1766177057429,3.56,127.02,126.92,69.26106544]
[1766177057631,3.56,127.02,126.93,46.52]
[1766177058134,0.05494166,126.99,126.96,0.05778891]
[1766177059124,3.65494166,126.99,126.96,0.05778891]
[1766177061532,3.6,126.98,126.92,53.6146]
[1766177062436,0.05359068,126.96,126.94,0.05243747]
[1766177063636,3.65359068,126.96,126.94,0.00243747]
[1766177064236,3.65359068,126.96,126.88,16.22523467]
[1766177064430,3.6,126.96,126.88,8.96416923]
[1766177064634,3.6,126.96,126.88,70.96416923]
[1766177064935,3.6,126.96,126.88,8.96416923]
[1766177065338,0.05343489,126.93,126.91,0.05598359]
[1766177065640,3.6,126.98,126.91,0.05598359]
[1766177065946,3.6,126.98,126.9,7.096]
[1766177066339,3.6,126.96,126.88,8.96426923]
[1766177066531,0.05018331,126.93,126.91,0.0569319]
[1766177066734,0.05018331,126.93,126.88,8.96426923]
[1766177066936,3.65018331,126.93,126.86,7.0981]
[1766177067840,3.65018331,126.93,126.88,0.06063124]
[1766177068038,3.65612531,126.92,126.88,0.06063124]
[1766177071155,3.65612531,126.92,126.88,0.00063124]
[1766177087068,0.05612531,126.92,126.88,0.00063124]
[1766177088369,0.05612531,126.92,126.88,7.09763124]
[1766177091973,3.55612531,126.92,126.88,7.09763124]
[1766177092677,0.05612531,126.92,126.88,7.09763124]
[1766177093881,0.05612531,126.92,126.89,7.0964]
[1766177094979,0.05612531,126.92,126.88,0.00063124]
[1766177095182,3.55612531,126.92,126.88,0.00063124]
[1766177100489,3.55612531,126.92,126.83,7.0996]
[1766177100677,3.5,126.92,126.83,7.0996]
[1766177101480,0.05344993,126.89,126.86,0.05492155]
[1766177102304,0.05344993,126.89,126.86,7.15292155]
[1766177102481,3.5,126.95,126.86,0.05492155]
[1766177102681,3.5,126.95,126.85,114.13537752]
[1766177103484,0.05909966,126.91,126.89,0.05850333]
[1766177103790,0.05058791,126.91,126.89,0.05850333]
[1766177105090,0.05058791,126.91,126.87,7.0975]